bitfinex/quotes_ETHUSD_20250808
["timestamp","ask_amount","ask_price","bid_price","bid_amount"]
[1754666330076,0.9243,3964.2,3963.9,0.1264]
[1754666330245,0.4291,3964.1,3963.9,0.1264]
[1754666330446,0.002,3964.2,3964.1,5.5226407]
[1754666330976,0.002,3964.2,3964.1,6.339827]
[1754666331149,0.002,3964.2,3964.1,6.466227]
[1754666331346,0.9243,3964.2,3964.1,3.0]
[1754666331778,5.0243,3964.2,3964.1,3.0]
[1754666332088,0.002,3964.2,3964.1,5.5226407]
[1754666334882,0.002,3964.2,3964.1,3.0]
[1754666335071,0.9318,3964.2,3964.1,3.0]
[1754666335586,0.002,3964.2,3964.1,5.5226407]
[1754666335789,0.002,3964.2,3964.1,3.0]
[1754666335961,0.4476,3964.2,3964.1,3.0]
[1754666336354,0.4476,3964.2,3964.1,5.5226407]
[1754666336888,0.002,3964.2,3964.1,5.5226407]
[1754666337256,0.002,3964.2,3964.1,3.0]
[1754666337463,0.4476,3964.2,3964.1,3.0]
[1754666337665,0.9318,3964.2,3964.1,3.0]
[1754666337964,1.43458,3964.2,3963.1,0.001]
[1754666338172,0.4456,3964.1,3963.5,2.52296613]
[1754666338557,0.4456,3964.1,3963.1,0.001]
[1754666338757,0.4456,3964.1,3963.5,2.52301562]
[1754666338964,0.4456,3964.1,3963.1,0.001]
[1754666338965,0.4842,3964.0,3963.1,0.001]
[1754666339167,0.4842,3964.0,3963.4,2.52303621]
[1754666339368,0.4456,3963.9,3963.1,3.001]
[1754666339573,4.09,3963.8,3963.6,3.0]
[1754666339769,4.09,3963.8,3963.7,3.0]
[1754666339973,4.09,3963.8,3963.7,2.52289527]
[1754666340186,4.09,3963.8,3963.7,3.32748698]
[1754666341416,4.09,3963.8,3963.7,2.52289527]
[1754666342274,4.09,3963.8,3963.7,2.64929527]
[1754666342475,4.087,3964.2,3964.1,5.5226407]
[1754666344377,0.002,3964.2,3964.1,5.5226407]
[1754666344575,4.5296,3964.2,3964.1,5.5226407]
[1754666344985,4.5296,3964.2,3964.1,3.0]
[1754666345188,4.5296,3964.2,3964.1,5.5226407]
[1754666345809,0.002,3964.2,3964.1,5.5226407]
[1754666346009,0.002,3964.2,3964.1,6.82982048]
[1754666346605,0.002,3964.2,3964.1,6.95622048]
[1754666346815,0.002,3964.2,3964.1,6.46622048]
[1754666347201,0.002,3964.2,3964.1,5.6490407]
[1754666347620,0.002,3964.2,3964.1,6.1390407]
[1754666348315,0.002,3964.2,3964.1,5.6490407]
[1754666351005,0.4476,3964.2,3964.1,5.6490407]
[1754666352131,0.4476,3964.2,3964.1,3.1264]
[1754666352315,0.9318,3964.2,3964.1,3.1264]
[1754666352514,0.9318,3964.2,3964.1,0.1264]
[1754666352731,0.9318,3964.2,3963.8,0.1264]
[1754666352890,5.0108,3964.1,3963.8,5.64921586]
[1754666353097,0.9298,3964.0,3963.6,2.5229108]
[1754666353391,0.9298,3963.9,3963.8,3.0]
[1754666353720,0.4456,3963.9,3963.8,3.0]
[1754666353918,0.002,3964.2,3964.0,5.5226801]
[1754666354118,0.4476,3964.2,3964.1,2.5226407]
[1754666354298,0.002,3964.2,3964.1,5.6490407]
[1754666354499,0.002,3964.2,3964.1,6.36567601]
[1754666356344,0.002,3964.2,3964.1,5.6490407]
[1754666358446,0.002,3964.2,3964.1,6.1390407]
[1754666359292,1e-08,3964.6,3964.5,2.52238617]
[1754666359497,0.002,3965.0,3964.9,5.5221317]
[1754666359933,0.002,3965.0,3964.9,5.6485317]
[1754666360094,0.002,3965.0,3964.9,6.465606]
[1754666360632,0.4476,3965.0,3964.9,5.6485317]
[1754666360999,0.002,3965.0,3964.9,5.6485317]
[1754666362823,0.042,3965.4,3964.9,5.6485317]
[1754666362824,0.042,3965.4,3965.3,5.52187728]
[1754666363124,0.042,3965.4,3965.3,18.48212195]
[1754666364103,0.042,3965.4,3965.3,18.93512195]
[1754666364304,0.042,3965.4,3965.3,21.49041204]
[1754666364504,0.042,3965.4,3965.3,8.20356737]
[1754666364725,0.042,3965.4,3965.3,5.64827728]
[1754666365929,0.4843,3965.4,3965.3,5.64827728]
[1754666366638,0.4843,3965.4,3965.3,3.1264]
[1754666366838,0.981,3965.4,3965.3,3.1264]
[1754666367243,0.042,3965.4,3965.3,5.64827728]
[1754666367645,0.042,3965.4,3965.3,6.46530473]
[1754666367948,0.981,3965.4,3965.3,3.1264]
[1754666368148,0.981,3965.4,3965.3,3.0]
[1754666368445,0.981,3965.4,3965.3,5.52187728]
[1754666368621,0.981,3965.4,3965.3,3.0]
[1754666368949,0.981,3965.4,3964.6,2.5223112]
[1754666369122,3.26443945,3965.3,3964.7,0.1264]
[1754666369324,5.018,3965.2,3963.8,4.079]
[1754666369509,4.079,3965.1,3964.6,0.1264]
[1754666369847,0.1264,3964.8,3964.1,2.52259746]
[1754666370051,2.52232507,3964.6,3963.9,2.5227422]
[1754666370351,0.939,3964.5,3963.8,0.1264]
[1754666370512,0.4423,3964.4,3963.8,0.1264]
[1754666370714,4.079,3964.3,3964.0,3.0]
[1754666370929,4.079,3964.3,3963.9,2.5227123]
[1754666370930,0.939,3964.2,3963.9,2.5227123]
[1754666371262,0.939,3964.1,3964.0,3.0]
[1754666371760,0.939,3964.1,3963.8,0.1264]
[1754666371924,0.939,3964.0,3963.8,0.1264]
[1754666372123,0.939,3964.0,3963.9,0.001]
[1754666372930,3.46170433,3964.0,3963.9,0.001]
[1754666373326,0.939,3964.0,3963.9,0.001]
[1754666374070,3.46170433,3964.0,3963.9,0.001]
[1754666374232,3.96350433,3964.0,3963.9,0.001]
[1754666374629,1.4408,3964.0,3963.9,0.001]
[1754666376444,3.96350433,3964.0,3963.9,0.001]
[1754666376845,4.72138633,3964.0,3963.9,0.001]
[1754666378693,5.27138633,3964.0,3963.9,0.001]
[1754666380608,5.27138633,3964.0,3963.7,0.001]
[1754666380609,3.07283162,3963.8,3963.7,1e-08]
[1754666380785,10.15283162,3963.8,3963.7,1e-08]
[1754666380952,11.09183162,3963.8,3963.7,1e-08]
[1754666382167,11.09083162,3963.8,3963.7,1e-08]
[1754666382969,7.13823162,3963.8,3963.7,1e-08]
[1754666383212,11.49839765,3963.8,3963.7,1e-08]
[1754666388283,7.41839765,3963.8,3963.7,1e-08]
[1754666388483,11.49839765,3963.8,3963.7,1e-08]
[1754666388663,7.45169765,3963.8,3963.7,1e-08]
[1754666388868,6.72923162,3963.8,3963.7,1e-08]
[1754666389098,7.72153162,3963.8,3963.7,1e-08]
[1754666389317,11.21823162,3963.8,3963.7,1e-08]
[1754666389814,3.07321356,3963.2,3963.1,0.001]
[1754666389996,7.58693492,3963.2,3963.1,0.001]
[1754666390197,8.02923492,3963.2,3963.1,0.001]
[1754666390364,8.52593492,3963.2,3963.1,0.001]
[1754666391314,8.62703392,3963.2,3963.1,0.001]
[1754666391688,3.0733409,3963.0,3962.9,0.001]
[1754666391901,3.0733409,3963.0,3962.0,0.001]
[1754666391902,0.55,3962.1,3962.0,0.001]
[1754666392210,13.34131408,3962.1,3962.0,1e-08]
[1754666392412,14.28031408,3962.1,3962.0,1e-08]
[1754666393826,17.28031408,3962.1,3962.0,1e-08]
[1754666394114,18.66551406,3962.1,3962.0,1e-08]
[1754666394634,14.08881406,3962.1,3962.0,1e-08]
[1754666394828,18.16881406,3962.1,3962.0,1e-08]
[1754666395405,18.65601406,3962.1,3962.0,1e-08]
[1754666396530,19.19612935,3962.1,3962.0,1e-08]
[1754666398211,19.29726835,3962.1,3962.0,1e-08]
[1754666400408,19.9754763,3962.1,3962.0,1e-08]
[1754666401094,3.07448752,3961.2,3961.1,1e-08]
[1754666401299,7.15448752,3961.2,3961.1,1e-08]
[1754666401819,7.25564552,3961.2,3961.1,1e-08]
[1754666402312,6.83204552,3961.2,3961.1,1e-08]
[1754666403080,7.38204552,3961.2,3961.1,1e-08]
[1754666403275,7.85669019,3961.2,3961.1,1e-08]
[1754666403895,9.35906235,3961.2,3961.1,1e-08]
[1754666404289,8.39726235,3961.2,3961.1,1e-08]
[1754666404739,7.85669019,3961.2,3961.1,1e-08]
[1754666405026,3.77669019,3961.2,3961.1,1e-08]
[1754666405241,7.25564552,3961.2,3961.1,1e-08]
[1754666406430,0.101158,3961.2,3961.1,0.61050001]
[1754666406635,4.181158,3961.2,3961.1,0.61050001]
[1754666406789,4.08,3961.2,3961.1,3.13505127]
[1754666406984,2.52404786,3961.9,3961.3,2.52442378]
[1754666407191,0.758393,3961.4,3961.2,2.52448752]
[1754666407495,4.08,3961.3,3961.2,0.50490947]
[1754666407824,4.08,3961.3,3961.2,0.6105]
[1754666409131,4.08,3961.3,3961.2,3.13498752]
[1754666409286,0.758393,3961.4,3961.3,2.5244238]
[1754666409488,8.58493181,3962.1,3961.4,2.52431934]
[1754666409740,0.758343,3961.7,3961.5,0.4875]
[1754666409927,4.079,3961.6,3961.5,0.4875]
[1754666410134,4.079,3961.6,3961.5,0.6105]
[1754666410438,6.061,3962.1,3961.5,6.13477635]
[1754666410590,6.061,3962.1,3961.2,0.4875]
[1754666410591,2.52405045,3961.9,3961.2,0.4875]
[1754666410919,4.079,3961.8,3961.4,3.0]
[1754666411124,4.079,3961.7,3961.2,5.64747915]
[1754666411428,4.079,3961.6,3961.5,0.4875]
[1754666411735,4.079,3961.6,3961.5,3.4875]
[1754666411935,4.079,3961.6,3961.5,3.6105]
[1754666412249,6.061,3962.1,3961.5,6.13479635]
[1754666412393,4.079,3962.0,3961.5,3.98892921]
[1754666412592,4.079,3962.0,3961.6,0.4875]
[1754666412808,4.079,3962.0,3961.7,3.13464531]
[1754666413019,4.079,3962.0,3961.7,2.52416406]
[1754666413327,4.079,3962.0,3961.8,0.6105]
[1754666413528,4.079,3962.0,3961.8,3.13458272]
[1754666413687,6.061,3962.1,3961.8,3.13458272]
[1754666413894,4.078,3962.0,3961.9,0.6105]
[1754666414945,6.061,3962.1,3961.9,0.6105]
[1754666414946,6.061,3962.1,3962.0,2.52397778]
[1754666415091,10.139,3962.1,3962.0,3.13447778]
[1754666415697,10.139,3962.1,3962.0,0.4875]
[1754666416061,10.139,3962.1,3962.0,3.01147778]
[1754666416208,10.139,3962.1,3962.0,3.13447778]
[1754666416540,6.061,3962.1,3962.0,6.58997454]
[1754666416720,4.078,3962.1,3962.0,6.83937454]
[1754666417527,0.1264,3962.7,3962.0,4.19239676]
[1754666417729,0.002,3962.9,3962.6,2.52356721]
[1754666417929,4.077,3962.8,3962.5,3.0]
[1754666418208,4.077,3962.7,3962.5,3.01115778]
[1754666418610,4.077,3962.7,3962.5,3.4875]
[1754666418834,4.077,3962.7,3962.5,0.4875]
[1754666419006,0.002,3962.9,3962.6,3.01109561]
[1754666419208,4.077,3962.8,3962.6,3.01109561]
[1754666419410,4.077,3962.8,3962.7,0.4875]
[1754666419816,4.076,3962.8,3962.7,0.4875]
[1754666420342,4.076,3962.8,3962.4,0.1264]
[1754666421043,2.52370037,3962.5,3961.9,3.0]
[1754666421346,4.2024,3962.4,3961.9,3.1264]
[1754666421511,4.2024,3962.4,3961.9,0.1264]
[1754666421709,6.72613892,3962.4,3961.9,0.1264]
[1754666421945,2.52379922,3962.3,3961.9,0.1264]
[1754666422117,0.1264,3962.2,3961.7,2.65055885]
[1754666422319,4.076,3962.1,3961.7,3.13805885]
[1754666423146,4.076,3962.1,3961.8,2.52409468]
[1754666423448,4.076,3962.1,3961.9,2.52402645]
[1754666423614,0.1264,3962.2,3962.0,5.52397778]
[1754666423815,4.076,3962.1,3962.0,3.0]
[1754666424037,4.075,3962.1,3962.0,5.98047778]
[1754666424241,4.075,3962.1,3962.0,6.85588228]
[1754666424550,0.1264,3962.5,3962.3,3.0]
[1754666424712,0.1264,3962.5,3962.4,2.52372299]
[1754666424917,4.2014,3962.5,3962.4,5.52372299]
[1754666425245,4.075,3962.5,3962.4,5.52372299]
[1754666425446,4.075,3962.5,3962.4,3.0]
[1754666425628,4.075,3962.5,3962.4,5.52372299]
[1754666425946,4.075,3962.5,3962.4,3.0]
[1754666426354,4.025,3962.5,3962.4,3.0]
[1754666426651,7.1330593,3962.5,3962.4,3.0]
[1754666426950,2.52380509,3962.3,3961.7,3.1264]
[1754666427274,0.1264,3962.3,3962.0,2.52393268]
[1754666427452,4.074,3962.2,3962.1,2.52391408]
[1754666427625,4.074,3962.2,3962.1,2.98041408]
[1754666427821,4.074,3962.2,3962.1,0.86308064]
[1754666428143,4.074,3962.2,3962.0,3.0]
[1754666428659,4.074,3962.2,3961.9,0.1264]
[1754666428855,4.074,3962.2,3961.6,3.0]
[1754666429064,4.074,3962.2,3961.7,0.1264]
[1754666429242,4.074,3962.2,3961.8,2.52405443]
[1754666429557,7.05591013,3962.2,3961.7,0.1264]
[1754666429781,2.52544964,3962.9,3962.4,2.52366178]
[1754666429782,0.002,3962.9,3962.4,2.52366178]
[1754666430055,4.073,3962.8,3962.3,0.1264]
[1754666430233,4.073,3962.8,3962.3,2.65017777]
[1754666430424,4.073,3962.8,3962.3,0.1264]
[1754666430630,4.073,3962.8,3962.3,2.65018589]
[1754666431125,2.52353193,3962.7,3962.3,0.1264]
[1754666431322,2.52369937,3962.5,3961.9,3.0]
[1754666431529,0.1264,3962.3,3961.9,3.0]
[1754666431752,0.1264,3962.3,3961.8,0.1264]
[1754666432055,2.65019758,3962.3,3961.8,3.1264]
[1754666432258,0.458,3962.2,3961.8,0.1264]
[1754666432552,0.458,3962.2,3961.9,3.0]
[1754666433059,0.1264,3962.3,3961.9,3.0]
[1754666433258,2.52404149,3961.9,3961.7,3.0]
[1754666433557,2.52436686,3961.4,3961.1,1e-08]
[1754666433856,0.1264,3961.2,3961.1,1e-08]
[1754666434059,4.1994,3961.2,3961.1,1e-08]
[1754666434245,8.61180121,3961.2,3961.1,1e-08]
[1754666434898,9.16180121,3961.2,3961.1,1e-08]
[1754666436176,0.1264,3961.2,3961.1,1e-08]
[1754666436378,4.1984,3961.2,3961.1,0.00100001]
[1754666437371,7.18088752,3961.2,3961.1,0.00100001]
[1754666438219,4.6564,3961.2,3961.1,0.00100001]
[1754666438510,7.18088752,3961.2,3961.1,0.00100001]
[1754666438733,4.6564,3961.2,3961.1,0.00100001]
[1754666438900,7.18088752,3961.2,3961.1,0.00100001]
[1754666439420,0.5844,3961.2,3961.1,0.00100001]
[1754666439721,4.1984,3961.2,3961.1,0.00100001]
[1754666439907,6.72288752,3961.2,3961.1,0.00100001]
[1754666440220,7.18088752,3961.2,3961.1,0.00100001]
[1754666440408,0.1264,3961.2,3961.1,0.00100001]
[1754666440581,4.1984,3961.2,3961.1,0.00100001]
[1754666441817,6.72288752,3961.2,3961.1,0.00100001]
[1754666442012,7.18088752,3961.2,3961.1,0.00100001]
[1754666442389,4.6564,3961.2,3961.1,0.00100001]
[1754666442921,8.10582752,3961.2,3961.1,0.00100001]
[1754666443292,8.65582752,3961.2,3961.1,0.00100001]
[1754666445032,8.75696452,3961.2,3961.1,0.00100001]
[1754666445729,8.75696452,3961.2,3957.1,0.04]
[1754666445730,0.55,3959.9,3957.1,0.04]
[1754666446028,0.55,3961.1,3957.1,0.04]
[1754666446029,2.52626139,3958.5,3957.7,0.4565]
[1754666446188,4.071,3958.4,3957.7,0.4565]
[1754666446394,0.458,3958.8,3957.8,2.526648]
[1754666446715,6.82192,3959.8,3957.1,0.04]
[1754666446716,4.071,3958.7,3958.3,12.85417713]
[1754666447025,2.52562889,3959.5,3958.3,12.85417713]
[1754666447026,4.071,3958.6,3958.5,5.52620942]
[1754666447231,4.071,3958.6,3958.5,3.0]
[1754666447232,6.5971456,3958.6,3958.5,3.0]
[1754666447537,4.529,3958.6,3958.1,0.04]
[1754666447833,3.44352418,3958.5,3958.1,0.04]
[1754666448129,2.52627324,3958.4,3958.1,0.04]
[1754666448293,4.5239,3958.6,3958.1,0.04]
[1754666448294,0.4529,3958.6,3958.1,0.04]
[1754666448493,4.529,3958.5,3958.1,0.04]
[1754666449236,0.458,3959.3,3958.1,0.04]
[1754666449435,0.75892,3959.8,3958.1,0.04]
[1754666449436,9.04745147,3959.7,3958.3,5.52633706]
[1754666449639,4.071,3959.6,3958.2,2.52640088]
[1754666449881,2.52597157,3958.9,3958.2,3.0]
[1754666450124,4.071,3958.8,3958.1,0.04]
[1754666450297,6.064,3959.7,3958.2,0.5805]
[1754666450298,4.071,3958.7,3958.2,0.5805]
[1754666450498,0.458,3959.6,3958.6,3.0]
[1754666450728,4.071,3959.5,3959.0,2.52585266]
[1754666451024,4.071,3959.5,3958.8,2.52601674]
[1754666451025,4.071,3959.4,3958.8,2.52595565]
[1754666451197,4.071,3959.4,3958.7,2.52607299]
[1754666451393,4.071,3959.4,3958.6,0.4565]
[1754666451596,4.071,3959.4,3958.9,2.52594267]
[1754666452011,2.52552229,3959.6,3958.8,2.52600039]
[1754666452212,6.59657801,3959.5,3958.8,2.52600039]
[1754666452439,4.071,3959.4,3958.9,2.52595055]
[1754666452642,4.071,3959.4,3958.2,0.4565]
[1754666452932,4.071,3959.4,3958.3,1.64746771]
[1754666453126,6.5966399,3959.4,3958.3,1.64746771]
[1754666453427,4.071,3959.4,3958.3,1.64746771]
[1754666453618,4.071,3959.4,3958.9,2.52594504]
[1754666453788,6.064,3959.7,3958.6,0.4565]
[1754666453989,4.071,3959.6,3959.1,2.52579777]
[1754666454206,4.071,3959.6,3958.6,0.4565]
[1754666454719,4.071,3959.6,3959.2,2.52573947]
[1754666454904,4.071,3959.6,3959.3,2.52567339]
[1754666455529,4.071,3959.6,3959.1,2.52581288]
[1754666455740,4.5042,3959.6,3959.1,2.52581288]
[1754666456026,0.1264,3959.4,3959.2,2.52574658]
[1754666456391,0.1264,3959.4,3959.1,2.5258099]
[1754666456596,0.1264,3959.4,3959.0,3.0]
[1754666456923,0.1264,3959.4,3959.1,2.5258138]
[1754666457227,0.1264,3959.4,3958.9,2.6523208]
[1754666457228,4.071,3959.3,3958.9,0.1264]
[1754666457797,0.4332,3959.2,3958.6,3.0]
[1754666458110,2.52586923,3959.1,3958.1,0.041]
[1754666458299,4.9744,3959.0,3958.1,0.041]
[1754666458501,0.1264,3958.7,3958.2,3.1264]
[1754666458704,4.5032,3958.6,3958.3,2.52631422]
[1754666458916,4.5032,3958.6,3958.5,3.0]
[1754666459113,4.5032,3958.6,3958.1,0.041]
[1754666459394,3.55706133,3958.5,3958.1,0.041]
[1754666459600,0.1264,3958.2,3958.1,0.041]
[1754666459795,6.72280088,3958.2,3958.1,0.041]
[1754666460020,7.62720088,3958.2,3958.1,0.041]
[1754666460904,6.066,3959.7,3958.1,0.041]
[1754666460905,0.4332,3959.0,3958.2,2.52638637]
[1754666461109,0.1264,3958.4,3958.2,2.52639828]
[1754666461300,0.1264,3958.4,3958.3,2.52633706]
[1754666461500,4.1964,3958.4,3958.3,2.52633706]
[1754666461722,4.07,3958.4,3958.3,2.52633706]
[1754666462124,4.07,3958.4,3958.2,2.99788211]
[1754666462323,4.07,3958.4,3958.3,2.52633706]
[1754666462828,4.07,3958.4,3958.3,5.52633706]
[1754666463030,0.1264,3958.7,3958.4,3.0]
[1754666463325,0.4352,3959.3,3958.5,0.02526209]
[1754666463510,4.07,3959.2,3958.8,2.65236056]
[1754666463829,4.07,3959.2,3958.8,0.1264]
[1754666464028,4.07,3959.2,3958.3,2.52633642]
[1754666464029,2.65240322,3958.9,3958.3,2.52633642]
[1754666464226,0.1264,3958.7,3958.1,0.1674]
[1754666464419,0.1264,3958.7,3958.4,2.52621547]
[1754666464620,0.1264,3958.7,3958.5,3.0]
[1754666464816,0.1264,3958.7,3958.1,0.1674]
[1754666465031,4.07,3958.6,3958.5,2.52620942]
[1754666465240,4.07,3958.6,3958.4,2.52625835]
[1754666465412,4.07,3958.6,3958.5,3.0]
[1754666465809,4.07,3958.6,3958.4,3.0]
[1754666466012,4.5032,3958.6,3958.3,3.0]
[1754666466221,0.4332,3958.5,3958.3,3.0]
[1754666466422,0.4332,3958.4,3958.2,3.0]
[1754666466642,0.4332,3958.4,3958.1,0.041]
[1754666466838,0.1264,3958.2,3958.1,0.041]
[1754666467027,6.72180088,3958.2,3958.1,0.041]
[1754666467345,4.6286,3958.2,3958.1,0.041]
[1754666467731,4.1954,3958.2,3958.1,0.041]
[1754666468040,7.62620088,3958.2,3958.1,0.041]
[1754666468539,4.1954,3958.2,3958.1,0.041]
[1754666469244,4.069,3958.2,3958.1,3.29571483]
[1754666469458,0.1264,3958.9,3958.1,1.01965012]
[1754666469656,4.069,3958.8,3958.7,2.52608179]
[1754666470627,4.069,3958.8,3958.6,2.52614004]
[1754666470847,4.069,3958.8,3958.7,2.52608179]
[1754666471018,4.069,3958.8,3958.7,5.52608179]
[1754666472124,0.1264,3959.1,3958.8,5.52601798]
[1754666472330,0.002,3959.3,3959.2,2.52576278]
[1754666472556,0.002,3959.3,3959.2,2.65216278]
[1754666472557,4.07,3959.3,3959.2,2.65216278]
[1754666473096,4.07,3959.3,3959.2,0.1264]
[1754666473542,4.07,3959.3,3959.2,2.65216278]
[1754666473738,0.002,3959.3,3959.2,2.65216278]
[1754666473983,0.002,3959.3,3959.2,6.64146274]
[1754666474151,4.07,3959.3,3959.2,6.64146274]
[1754666476578,0.002,3959.3,3959.2,6.64146274]
[1754666476880,0.002,3959.3,3959.2,6.76546274]
[1754666477598,0.002,3959.3,3959.2,11.05546274]
[1754666479453,0.002,3959.3,3959.2,6.76546274]
[1754666479764,0.002,3959.7,3959.6,2.52550762]
[1754666480000,0.002,3959.7,3959.6,19.18479419]
[1754666480201,0.002,3959.7,3959.6,19.31119419]
[1754666480519,0.002,3959.7,3959.6,19.90669419]
[1754666482986,0.002,3959.7,3959.6,19.78269419]
[1754666483399,0.002,3959.7,3959.6,23.97169419]
[1754666485590,0.002,3959.7,3959.6,23.84769419]
[1754666487218,0.002,3959.7,3959.6,23.37619419]
[1754666487619,0.002,3959.7,3959.6,32.74532219]
[1754666487824,0.002,3959.7,3959.6,26.16372619]
[1754666488238,0.002,3959.7,3959.6,26.64982619]
[1754666488547,1e-08,3959.7,3959.6,26.77382619]
[1754666488843,0.002,3960.1,3960.0,5.52525252]
[1754666489054,0.002,3960.1,3960.0,6.63031072]
[1754666489342,0.002,3960.1,3960.0,6.75671072]
[1754666489731,0.002,3960.3,3960.2,2.52512499]
[1754666489933,0.002,3960.3,3960.2,18.50570212]
[1754666490451,2.52402895,3962.0,3960.2,18.50570212]
[1754666490452,0.4473,3961.6,3961.3,2.5244238]
[1754666490610,0.002,3962.9,3961.3,5.77686618]
[1754666490611,4.062,3962.1,3961.3,5.77686618]
[1754666490811,0.4473,3961.8,3961.3,5.90326618]
[1754666491028,0.4873,3961.4,3961.3,5.90326618]
[1754666491921,0.4873,3961.4,3961.3,5.6508238]
[1754666492129,0.9555,3961.4,3961.3,5.6508238]
[1754666492319,0.9555,3961.4,3961.3,3.1264]
[1754666492545,0.9555,3961.4,3961.3,3.0]
[1754666493749,1.0819,3961.4,3961.3,3.0]
[1754666494947,5.1429,3961.4,3961.3,3.0]
[1754666498540,5.1429,3961.4,3961.3,5.5244238]
[1754666498740,4.5483,3961.4,3961.3,5.5244238]
[1754666499177,4.101,3961.4,3961.3,6.27210081]
[1754666500175,0.04,3961.4,3961.3,6.27210081]
[1754666500476,0.04,3961.4,3961.3,6.75820081]
[1754666501541,0.04,3961.4,3961.3,6.27210081]
[1754666502071,0.04,3961.4,3961.3,6.75820081]
[1754666502663,0.04,3961.4,3961.3,6.27210081]
[1754666503280,5.0125,3961.4,3961.3,5.6508238]
[1754666503481,5.0145,3961.4,3961.3,5.6508238]
[1754666503991,4.099,3961.4,3961.3,5.6508238]
[1754666504584,4.5463,3961.4,3961.3,5.6508238]
[1754666505867,4.099,3961.4,3961.3,5.6508238]
[1754666506268,4.5463,3961.4,3961.3,5.6508238]
[1754666506603,4.099,3961.4,3961.3,5.6508238]
[1754666507186,4.5463,3961.4,3961.3,5.34025247]
[1754666507999,4.099,3961.4,3961.3,5.34025247]
[1754666508808,0.042,3961.4,3961.3,7.89824979]
[1754666509604,0.002,3961.8,3961.7,5.52416891]
[1754666509783,0.002,3962.2,3962.1,5.52391408]
[1754666510534,0.002,3962.2,3962.1,5.65031408]
[1754666510911,0.4493,3962.2,3962.1,5.65031408]
[1754666511251,0.002,3962.2,3962.1,6.46774468]
[1754666512340,0.002,3962.2,3962.1,19.32192181]
[1754666513154,0.002,3962.2,3962.1,19.80802181]
[1754666513713,0.002,3962.2,3962.1,19.32192181]
[1754666516947,0.002,3962.2,3962.1,23.82392181]
[1754666517319,0.04,3962.4,3962.3,2.52378668]
[1754666517520,0.04,3962.4,3962.3,12.15631463]
[1754666517733,0.04,3962.4,3962.3,12.70747677]
[1754666518752,0.04,3962.4,3962.3,12.25747677]
[1754666518937,0.04,3962.4,3962.3,8.20547677]
[1754666520676,0.9552,3962.4,3962.3,0.1264]
[1754666521181,0.9552,3962.4,3962.1,3.1264]
[1754666521474,0.9152,3962.3,3962.1,3.1264]
[1754666521696,0.9152,3962.3,3962.2,5.52385038]
[1754666521697,0.4872,3962.3,3962.2,5.52385038]
[1754666521836,0.04,3962.4,3962.2,5.52385038]
[1754666521837,0.04,3962.4,3962.3,5.52378668]
[1754666522176,0.468,3962.4,3962.3,5.52378668]
[1754666522580,0.04,3962.4,3962.3,5.52378668]
[1754666522752,0.04,3962.4,3962.3,6.82210595]
[1754666523078,0.04,3962.4,3962.3,6.94850595]
[1754666524273,0.002,3962.5,3962.3,6.94850595]
[1754666524274,0.002,3962.5,3962.4,5.52372299]
[1754666524664,0.002,3962.5,3962.4,5.97372299]
[1754666524848,0.002,3962.5,3962.4,8.52901308]
[1754666527505,0.002,3962.5,3962.4,38.52901308]
[1754666527681,0.002,3962.5,3962.4,44.66153982]
[1754666528002,0.002,3962.5,3962.4,44.21153982]
[1754666529885,0.002,3962.5,3962.4,41.68826282]
[1754666530674,0.002,3962.5,3962.4,14.21153982]
[1754666532208,0.9172,3962.5,3962.4,8.65624973]
[1754666532585,0.9172,3962.5,3962.4,6.13252674]
[1754666532912,0.9172,3962.5,3962.4,11.65624973]
[1754666533086,0.9172,3962.5,3962.4,5.18252674]
[1754666533087,3.4408593,3962.5,3962.4,5.18252674]
[1754666533287,4.44210232,3962.5,3962.4,4.68252674]
[1754666533501,4.44210232,3962.5,3962.1,0.001]
[1754666533502,2.52385038,3962.2,3962.1,0.001]
[1754666533872,2.52396785,3962.1,3960.6,2.5248284]
[1754666534189,0.9152,3962.2,3960.9,2.52462531]
[1754666534190,2.52415457,3961.8,3960.9,2.52462531]
[1754666534390,6.06,3962.2,3960.8,2.52471624]
[1754666534391,4.045,3961.7,3960.8,2.52471624]
[1754666534588,2.5242791,3961.6,3960.9,2.52467548]
[1754666534793,0.9152,3961.5,3960.5,3.001]
[1754666535112,2.52450817,3961.2,3960.5,2.52588979]
[1754666535415,4.045,3961.7,3960.5,0.001]
[1754666535416,2.52473732,3960.9,3960.5,0.001]
[1754666535614,4.045,3960.8,3960.5,0.001]
[1754666535776,4.9602,3960.8,3960.5,0.001]
[1754666535980,0.428,3960.7,3960.5,2.5259257]
[1754666536212,4.045,3960.7,3960.5,2.5259274]
[1754666536475,0.428,3960.6,3960.5,2.5259274]
[1754666536703,0.428,3960.6,3960.5,3.001]
[1754666536896,0.428,3960.6,3960.5,0.001]
[1754666536897,0.9152,3960.6,3960.5,0.001]
[1754666537094,0.428,3960.6,3960.5,2.52593372]
[1754666537413,4.045,3960.7,3960.6,3.0]
[1754666537777,4.045,3960.7,3960.5,2.52593372]
[1754666537778,4.473,3960.7,3960.5,3.001]
[1754666538099,3.44006996,3960.6,3960.5,0.001]
[1754666538996,0.9152,3960.6,3960.5,0.001]
[1754666541031,3.44006996,3960.6,3960.5,0.001]
[1754666542416,3.99006996,3960.6,3960.5,0.001]
[1754666543253,4.11646996,3960.6,3960.5,0.001]